fUSD/lending_fUSD_20260503
["ID","MTS","AMOUNT","RATE_DAILY","PERIOD"]
[421483873,1777752632000,-151.0,0.00013599,2]
[421483866,1777752632000,-130887.214447,0.00013599,2]
[421483871,1777752632000,-7346.8398299,0.00013599,2]
[421483872,1777752632000,-151.0,0.00013599,2]
[421483883,1777752632000,-151.0,0.00013599,2]
[421483884,1777752632000,-151.0,0.00013599,2]
[421483885,1777752632000,-151.0,0.00013599,2]
[421483881,1777752632000,-151.0,0.00013599,2]
[421483880,1777752632000,-151.0,0.00013599,2]
[421483882,1777752632000,-151.0,0.00013599,2]
[421483876,1777752632000,-151.0,0.00013599,2]
[421483874,1777752632000,-151.0,0.00013599,2]
[421483879,1777752632000,-151.0,0.00013599,2]
[421483878,1777752632000,-300.0,0.00013599,2]
[421483877,1777752632000,-151.0,0.00013599,2]
[421483875,1777752632000,-151.0,0.00013599,2]
[421483946,1777752633000,-627.13344969,0.00013699,2]
[421483945,1777752633000,-627.13344969,0.00013699,2]
[421483941,1777752633000,-627.13344969,0.00013699,2]
[421483944,1777752633000,-627.13344969,0.00013699,2]
[421483943,1777752633000,-627.13344969,0.00013699,2]
[421483948,1777752633000,-627.13344969,0.00013699,2]
[421483947,1777752633000,-627.13344969,0.00013699,2]
[421483942,1777752633000,-627.13344969,0.00013699,2]
[421483951,1777752633000,-627.13344969,0.00013699,2]
[421483959,1777752633000,-627.13344969,0.00013699,2]
[421483950,1777752633000,-627.13344969,0.00013699,2]
[421483955,1777752633000,-627.13344969,0.00013699,2]
[421483958,1777752633000,-627.13344969,0.00013699,2]
[421483953,1777752633000,-627.13344969,0.00013699,2]
[421483956,1777752633000,-627.13344969,0.00013699,2]
[421483954,1777752633000,-627.13344969,0.00013699,2]
[421483957,1777752633000,-627.13344969,0.00013699,2]
[421483949,1777752633000,-627.13344969,0.00013699,2]
[421483960,1777752633000,-627.13344971,0.00013699,2]
[421483961,1777752633000,-627.13344971,0.00013699,2]
[421483939,1777752633000,-627.13344969,0.00013699,2]
[421483921,1777752633000,-627.13344969,0.00013699,2]
[421483935,1777752633000,-627.13344969,0.00013699,2]
[421483963,1777752633000,-627.13344971,0.00013699,2]
[421483919,1777752633000,-627.13344969,0.00013699,2]
[421483918,1777752633000,-627.13344969,0.00013699,2]
[421483925,1777752633000,-627.13344969,0.00013699,2]
[421483924,1777752633000,-627.13344969,0.00013699,2]
[421483920,1777752633000,-627.13344969,0.00013699,2]
[421483926,1777752633000,-627.13344969,0.00013699,2]
[421483922,1777752633000,-627.13344969,0.00013699,2]
[421483923,1777752633000,-627.13344969,0.00013699,2]
[421483940,1777752633000,-627.13344969,0.00013699,2]
[421483927,1777752633000,-627.13344969,0.00013699,2]
[421483930,1777752633000,-627.13344969,0.00013699,2]
[421483938,1777752633000,-627.13344969,0.00013699,2]
[421483936,1777752633000,-627.13344969,0.00013699,2]
[421483937,1777752633000,-627.13344969,0.00013699,2]
[421483933,1777752633000,-627.13344969,0.00013699,2]
[421483931,1777752633000,-627.13344969,0.00013699,2]
[421483929,1777752633000,-627.13344969,0.00013699,2]
[421483934,1777752633000,-627.13344969,0.00013699,2]
[421483932,1777752633000,-627.13344969,0.00013699,2]
[421483928,1777752633000,-627.13344969,0.00013699,2]
[421483965,1777752633000,-627.13344971,0.00013699,2]
[421483952,1777752633000,-627.13344969,0.00013699,2]
[421483962,1777752633000,-627.13344971,0.00013699,2]
[421483993,1777752633000,-300.0,0.00014206,2]
[421483994,1777752633000,-250.0,0.00014206,2]
[421483990,1777752633000,-166.66,0.0001411,2]
[421483997,1777752633000,-166.66,0.00014384,2]
[421483992,1777752633000,-4000.0,0.00014206,2]
[421483989,1777752633000,-166.66,0.00013973,2]
[421483995,1777752633000,-1000.0,0.00014221,2]
[421483996,1777752633000,-166.66,0.00014247,2]
[421483998,1777752633000,-1680.0,0.0001456,2]
[421484008,1777752633000,-160.85279121,0.00014973,2]
[421483999,1777752633000,-16890.06052872,0.00014606,2]
[421484000,1777752633000,-1050.24,0.00014644,2]
[421484007,1777752633000,-500.0,0.00014973,2]
[421484006,1777752633000,-250.0,0.00014973,2]
[421484003,1777752633000,-2000.0,0.00014817,2]
[421484002,1777752633000,-420.0,0.00014755,2]
[421484001,1777752633000,-255.0,0.00014713,2]
[421484004,1777752633000,-5000.0,0.000149,2]
[421484005,1777752633000,-2100.0,0.000149,5]
[421483991,1777752633000,-200.0,0.00014139,2]
[421483984,1777752633000,-627.13344971,0.00013699,2]
[421483988,1777752633000,-4000.0,0.00013883,2]
[421483986,1777752633000,-627.13344958,0.00013699,2]
[421483964,1777752633000,-627.13344971,0.00013699,2]
[421483966,1777752633000,-627.13344971,0.00013699,2]
[421483969,1777752633000,-627.13344971,0.00013699,2]
[421483970,1777752633000,-627.13344971,0.00013699,2]
[421483968,1777752633000,-627.13344971,0.00013699,2]
[421483971,1777752633000,-627.13344971,0.00013699,2]
[421483973,1777752633000,-627.13344971,0.00013699,2]
[421483972,1777752633000,-627.13344971,0.00013699,2]
[421483974,1777752633000,-627.13344971,0.00013699,2]
[421483983,1777752633000,-627.13344971,0.00013699,2]
[421484009,1777752633000,-183.70581575,0.00014973,2]
[421483977,1777752633000,-627.13344971,0.00013699,2]
[421483976,1777752633000,-627.13344971,0.00013699,2]
[421483979,1777752633000,-627.13344971,0.00013699,2]
[421483978,1777752633000,-627.13344971,0.00013699,2]
[421483980,1777752633000,-627.13344971,0.00013699,2]
[421483981,1777752633000,-627.13344971,0.00013699,2]
[421483982,1777752633000,-627.13344971,0.00013699,2]
[421483985,1777752633000,-627.13344971,0.00013699,2]
[421483987,1777752633000,-166.66,0.00013836,2]
[421483975,1777752633000,-627.13344971,0.00013699,2]
[421483967,1777752633000,-627.13344971,0.00013699,2]
[421484010,1777752634000,-500.0,0.00014973,2]
[421484016,1777752634000,-171129.98539184,0.00015,2]
[421484013,1777752634000,-500.0,0.00014973,2]
[421484015,1777752634000,-500.0,0.00014973,2]
[421484017,1777752634000,-5496.91617809,0.00015,2]
[421484012,1777752634000,-500.0,0.00014973,2]
[421484014,1777752634000,-500.0,0.00014973,2]
[421484011,1777752634000,-500.0,0.00014973,2]
[421484020,1777752637000,-815.91901641,0.00015,2]
[421484018,1777752637000,-151.75694338,0.00013699,2]
[421484021,1777752637000,-1071.0,0.00015,2]
[421484022,1777752637000,-720.01455073,0.00015,2]
[421484019,1777752637000,-195.49965413,0.00015,2]
[421484027,1777752637000,-23061.91238792,0.00015,2]
[421484028,1777752637000,-48993.48432967,0.00015,2]
[421484025,1777752637000,-17956.07462555,0.00015,2]
[421484023,1777752637000,-667.96197469,0.00015,2]
[421484026,1777752637000,-3562.06698633,0.00015,2]
[421484024,1777752637000,-540.61318472,0.00015,2]
[421484034,1777752638000,-9662.93463532,0.00015,2]
[421484029,1777752638000,-829.67010334,0.00015,2]
[421484031,1777752638000,-1678.19997191,0.00015,2]
[421484030,1777752638000,-380.52932165,0.00015,2]
[421484036,1777752638000,-38405.57288514,0.00015,2]
[421484037,1777752638000,-102154.08860006,0.00015,2]
[421484033,1777752638000,-6000.0,0.00015,2]
[421484032,1777752638000,-1894.42310382,0.00015,2]
[421484035,1777752638000,-1900.0,0.00015,2]
[421484093,1777752638000,-377.5264267,0.00015,2]
[421484097,1777752638000,-1922.34004422,0.00015,2]
[421484096,1777752638000,-974.33676083,0.00015,2]
[421484092,1777752638000,-65580.26924783,0.00015,2]
[421484095,1777752638000,-469.73578931,0.00015,2]
[421484094,1777752638000,-1454.76,0.00015,2]
[421484038,1777752638000,-363.98,0.00015,2]
[421484099,1777752639000,-5899.41500628,0.00015,2]
[421484100,1777752639000,-879.54028418,0.00015,2]
[421484098,1777752639000,-1051.74850456,0.00015,2]
[421484121,1777752642000,-520.45652898,0.00015,2]
[421484120,1777752642000,-313.70425141,0.00015,2]
[421484122,1777752643000,-827.75733248,0.00015,2]
[421484130,1777752646000,-1434.61950838,0.00015,2]
[421484131,1777752646000,-723.27390214,0.00015,2]
[421484129,1777752646000,-341.68629724,0.00015,2]
[421484128,1777752646000,-7088.68036888,0.00015,2]
[421484132,1777752646000,-1180.95304529,0.000149,2]
[421484135,1777753135000,630.14,0.00026149,120]
[421484138,1777753770000,-1112.4657339,0.00011,2]
[421484142,1777753831000,-250.0,0.0001155,2]
[421484141,1777753831000,-542.90177281,0.00011,2]
[421484143,1777753831000,-194.66712897,0.00012,2]
[421484140,1777753831000,-1271.14161176,0.00011,2]
[421484145,1777753832000,-1605.99198305,0.00012,2]
[421484144,1777753832000,-1951.87210122,0.00012,2]
[421484147,1777753832000,-785.81555945,0.00012,2]
[421484146,1777753832000,-859.784997,0.00012,2]
[421484157,1777753838000,-11979.75265951,0.00012,2]
[421484155,1777753838000,-829.67010334,0.00012,2]
[421484156,1777753838000,-380.52932165,0.00012,2]
[421484158,1777753838000,-921.27653065,0.00012,2]
[421484153,1777753838000,-23061.91238792,0.00012,2]
[421484152,1777753838000,-451.15504761,0.00012,2]
[421484150,1777753838000,-4134.16891772,0.00012,2]
[421484151,1777753838000,-1318.75819923,0.00012,2]
[421484154,1777753838000,-48993.48432967,0.00012,2]
[421484392,1777753840000,-3487.8893824,0.00012,2]
[421484407,1777753840000,-2269.44115513,0.00012,2]
[421484526,1777753854000,-150.0,0.00013685,2]
[421484527,1777753854000,-150.0,0.00013685,2]
[421484524,1777753854000,-150.0,0.00013562,2]
[421484520,1777753854000,-150.0,0.00013377,2]
[421484519,1777753854000,-2000.0,0.00013364,2]
[421484518,1777753854000,-150.0,0.00013315,2]
[421484529,1777753854000,-150.0,0.00013808,2]
[421484517,1777753854000,-150.0,0.00013315,2]
[421484512,1777753854000,-150.0,0.00013315,2]
[421484525,1777753854000,-150.0,0.00013623,2]
[421484509,1777753854000,-150.0,0.00013315,2]
[421484511,1777753854000,-298.70687485,0.00013315,2]
[421484513,1777753854000,-150.0,0.00013315,2]
[421484515,1777753854000,-150.0,0.00013315,2]
[421484508,1777753854000,-1200.0,0.00013314,2]
[421484521,1777753854000,-195.29,0.00013389,2]
[421484507,1777753854000,-250.0,0.00013,2]
[421484516,1777753854000,-150.0,0.00013315,2]
[421484505,1777753854000,-250.0,0.000121,2]
[421484506,1777753854000,-3723.09469458,0.00012919,2]
[421484504,1777753854000,-1587.44588413,0.000121,2]
[421484503,1777753854000,-124356.66515965,0.00012,2]
[421484510,1777753854000,-150.0,0.00013315,2]
[421484522,1777753854000,-150.0,0.00013438,2]
[421484514,1777753854000,-150.0,0.00013315,2]
[421484523,1777753854000,-150.0,0.000135,2]
[421484528,1777753854000,-150.0,0.00013747,2]
[421484543,1777753854000,-150.0,0.00014301,2]
[421484548,1777753854000,-150.0,0.00014486,2]
[421484545,1777753854000,-150.0,0.00014363,2]
[421484547,1777753854000,-150.0,0.00014425,2]
[421484553,1777753854000,-4100.0,0.000146,5]
[421484551,1777753854000,-169.174,0.00014504,2]
[421484544,1777753854000,-150.0,0.00014363,2]
[421484550,1777753854000,-2897.505,0.00014504,2]
[421484546,1777753854000,-150.0,0.00014425,2]
[421484552,1777753854000,-150.0,0.00014548,2]
[421484542,1777753854000,-150.0,0.00014301,2]
[421484549,1777753854000,-2000.0,0.000145,5]
[421484540,1777753854000,-150.0,0.0001424,2]
[421484538,1777753854000,-150.0,0.00014116,2]
[421484531,1777753854000,-150.0,0.00013808,2]
[421484530,1777753854000,-150.0,0.00013808,2]
[421484534,1777753854000,-150.0,0.00013993,2]
[421484533,1777753854000,-150.0,0.00013932,2]
[421484532,1777753854000,-150.0,0.0001387,2]
[421484539,1777753854000,-150.0,0.00014178,2]
[421484537,1777753854000,-150.0,0.00014055,2]
[421484541,1777753854000,-150.0,0.00014301,2]
[421484535,1777753854000,-150.0,0.00014055,2]
[421484536,1777753854000,-150.0,0.00014055,2]
[421484574,1777753855000,-150.0,0.00014795,2]
[421484572,1777753855000,-181.37420682,0.00014795,2]
[421484575,1777753855000,-150.0,0.00014795,2]
[421484577,1777753855000,-150.0,0.00014795,2]
[421484589,1777753855000,-589.21449472,0.00014798,2]
[421484579,1777753855000,-589.21449472,0.00014798,2]
[421484584,1777753855000,-589.21449472,0.00014798,2]
[421484587,1777753855000,-589.21449472,0.00014798,2]
[421484578,1777753855000,-150.0,0.00014795,2]
[421484583,1777753855000,-589.21449472,0.00014798,2]
[421484585,1777753855000,-589.21449472,0.00014798,2]
[421484581,1777753855000,-589.21449472,0.00014798,2]
[421484582,1777753855000,-589.21449472,0.00014798,2]
[421484586,1777753855000,-589.21449472,0.00014798,2]
[421484571,1777753855000,-150.0,0.00014795,2]
[421484580,1777753855000,-589.21449472,0.00014798,2]
[421484576,1777753855000,-150.0,0.00014795,2]
[421484558,1777753855000,-1009.9228,0.00014699,2]
[421484570,1777753855000,-500.0,0.00014791,2]
[421484588,1777753855000,-589.21449472,0.00014798,2]
[421484554,1777753855000,-150.0,0.0001461,2]
[421484556,1777753855000,-2928.80825457,0.00014667,2]
[421484566,1777753855000,-7573.05870462,0.00014744,2]
[421484555,1777753855000,-1680.0,0.00014645,2]
[421484557,1777753855000,-150.0,0.00014671,2]
[421484559,1777753855000,-10852.2338,0.000147,2]
[421484573,1777753855000,-150.0,0.00014795,2]
[421484563,1777753855000,-7573.05870462,0.000147,2]
[421484560,1777753855000,-5000.0,0.000147,2]
[421484564,1777753855000,-7573.05870462,0.00014722,2]
[421484567,1777753855000,-7573.05870462,0.00014767,2]
[421484565,1777753855000,-150.0,0.00014733,2]
[421484561,1777753855000,-6200.0,0.000147,5]
[421484568,1777753855000,-7573.05870462,0.00014789,2]
[421484569,1777753855000,-385.98057666,0.0001479,2]
[421484562,1777753855000,-2500.0,0.000147,2]
[421484590,1777753855000,-589.21449472,0.00014798,2]
[421484612,1777753855000,-589.21449472,0.00014798,2]
[421484594,1777753855000,-589.21449472,0.00014798,2]
[421484615,1777753855000,-589.21449472,0.00014798,2]
[421484609,1777753855000,-589.21449472,0.00014798,2]
[421484616,1777753855000,-589.21449472,0.00014798,2]
[421484611,1777753855000,-589.21449472,0.00014798,2]
[421484617,1777753855000,-589.21449472,0.00014798,2]
[421484623,1777753855000,-589.21449472,0.00014798,2]
[421484620,1777753855000,-589.21449472,0.00014798,2]
[421484628,1777753855000,-580.7971448,0.00014798,2]
[421484624,1777753855000,-589.21449472,0.00014798,2]
[421484621,1777753855000,-589.21449472,0.00014798,2]
[421484619,1777753855000,-589.21449472,0.00014798,2]
[421484625,1777753855000,-542.71015587,0.00014798,2]
[421484627,1777753855000,-580.7971448,0.00014798,2]
[421484618,1777753855000,-589.21449472,0.00014798,2]
[421484629,1777753855000,-580.7971448,0.00014798,2]
[421484592,1777753855000,-589.21449472,0.00014798,2]
[421484626,1777753855000,-580.7971448,0.00014798,2]
[421484613,1777753855000,-589.21449472,0.00014798,2]
[421484622,1777753855000,-589.21449472,0.00014798,2]
[421484604,1777753855000,-589.21449472,0.00014798,2]
[421484614,1777753855000,-589.21449472,0.00014798,2]
[421484593,1777753855000,-589.21449472,0.00014798,2]
[421484595,1777753855000,-589.21449472,0.00014798,2]
[421484601,1777753855000,-589.21449472,0.00014798,2]
[421484600,1777753855000,-589.21449472,0.00014798,2]
[421484597,1777753855000,-589.21449472,0.00014798,2]
[421484598,1777753855000,-589.21449472,0.00014798,2]
[421484596,1777753855000,-589.21449472,0.00014798,2]
[421484599,1777753855000,-589.21449472,0.00014798,2]
[421484602,1777753855000,-589.21449472,0.00014798,2]
[421484603,1777753855000,-589.21449472,0.00014798,2]
[421484605,1777753855000,-589.21449472,0.00014798,2]
[421484607,1777753855000,-589.21449472,0.00014798,2]
[421484606,1777753855000,-589.21449472,0.00014798,2]
[421484610,1777753855000,-589.21449472,0.00014798,2]
[421484591,1777753855000,-589.21449472,0.00014798,2]
[421484608,1777753855000,-589.21449472,0.00014798,2]
[421484732,1777753856000,-1183.0,0.00015367,5]
[421484727,1777753856000,-700.0,0.00015194,2]
[421484730,1777753856000,-9991.8,0.0001531,2]
[421484719,1777753856000,-240.965537,0.00015068,2]
[421484721,1777753856000,-240.965537,0.00015068,2]
[421484729,1777753856000,-150.99,0.0001531,2]
[421484728,1777753856000,-9999.99,0.0001531,2]
[421484725,1777753856000,-152.0,0.00015176,7]
[421484726,1777753856000,-152.0,0.00015176,7]
[421484731,1777753856000,-9999.99,0.0001531,2]
[421484723,1777753856000,-152.0,0.0001516,7]
[421484722,1777753856000,-240.965537,0.00015068,2]
[421484736,1777753856000,-255.0,0.00015483,2]
[421484743,1777753856000,-174.61919141,0.00015621,2]
[421484735,1777753856000,-1000.0,0.00015421,2]
[421484740,1777753856000,-1000.0,0.00015521,2]
[421484733,1777753856000,-1189.0,0.00015367,5]
[421484734,1777753856000,-1000.0,0.00015421,2]
[421484738,1777753856000,-1000.0,0.00015521,2]
[421484739,1777753856000,-219.94613923,0.00015521,2]
[421484741,1777753856000,-4000.0,0.00015608,2]
[421484746,1777753856000,-4000.0,0.00015998,2]
[421484744,1777753856000,-1514.51073399,0.00015968,2]
[421484755,1777753856000,-4000.0,0.00016388,2]
[421484754,1777753856000,-151.0,0.00016388,2]
[421484745,1777753856000,-406.11739145,0.00015968,2]
[421484724,1777753856000,-152.0,0.0001516,7]
[421484742,1777753856000,-398.14729164,0.00015621,2]
[421484720,1777753856000,-240.965537,0.00015068,2]
[421484687,1777753856000,-657.44111,0.000149,2]
[421484709,1777753856000,-744.97471172,0.00015,2]
[421484682,1777753856000,-33114.2544,0.000149,2]
[421484683,1777753856000,-10400.0,0.000149,5]
[421484694,1777753856000,-501.76177234,0.00014973,2]
[421484689,1777753856000,-657.4411,0.000149,2]
[421484690,1777753856000,-657.44111,0.000149,2]
[421484691,1777753856000,-500.0,0.00014973,2]
[421484695,1777753856000,-500.0,0.00014973,2]
[421484686,1777753856000,-657.44111,0.000149,2]
[421484684,1777753856000,-657.44111,0.000149,2]
[421484688,1777753856000,-657.44111,0.000149,2]
[421484748,1777753856000,-1500.0,0.00016068,2]
[421484693,1777753856000,-500.0,0.00014973,2]
[421484696,1777753856000,-385.98057666,0.0001499,2]
[421484697,1777753856000,-28062.6069118,0.00014993,2]
[421484692,1777753856000,-500.0,0.00014973,2]
[421484703,1777753856000,-1000.0,0.00015,2]
[421484698,1777753856000,-3867.3131558,0.00014993,2]
[421484714,1777753856000,-151.0,0.00015,2]
[421484715,1777753856000,-151.0,0.00015,2]
[421484711,1777753856000,-300.0,0.00015,2]
[421484705,1777753856000,-1000.0,0.00015,2]
[421484707,1777753856000,-1000.0,0.00015,2]
[421484712,1777753856000,-3543801.86001743,0.00015,2]
[421484717,1777753856000,-151.0,0.00015,2]
[421484699,1777753856000,-193322.50189744,0.00015,2]
[421484701,1777753856000,-151.75694337,0.00015,2]
[421484716,1777753856000,-154.26894159,0.00015,2]
[421484718,1777753856000,-2000.0,0.00015035,2]
[421484753,1777753856000,-151.0,0.00016388,2]
[421484737,1777753856000,-1000.0,0.00015521,2]
[421484749,1777753856000,-1500.0,0.00016068,2]
[421484787,1777753856000,-500.0,0.00017368,2]
[421484783,1777753856000,-728.07557888,0.00017164,2]
[421484788,1777753856000,-630.14,0.00017433,2]
[421484786,1777753856000,-184.67,0.00017312,2]
[421484785,1777753856000,-166.66,0.00017193,2]
[421484789,1777753856000,-191.072997,0.00017447,7]
[421484793,1777753856000,-33195.11343955,0.00017803,2]
[421484792,1777753856000,-500.0,0.0001778,2]
[421484790,1777753856000,-166.66,0.00017533,2]
[421484800,1777753856000,-159.0,0.0001841,2]
[421484791,1777753856000,-3292.0,0.00017721,2]
[421484799,1777753856000,-2000.0,0.00018376,2]
[421484795,1777753856000,-159.83,0.00017966,2]
[421484784,1777753856000,-4000.0,0.00017169,2]
[421484794,1777753856000,-166.66,0.00017874,2]
[421484796,1777753856000,-615.0,0.00017997,2]
[421484798,1777753856000,-500.0,0.00018313,2]
[421484804,1777753856000,-2228.0,0.00019,2]
[421484810,1777753856000,-3938.0,0.000192,2]
[421484802,1777753856000,-195.29,0.00018745,2]
[421484806,1777753856000,-151.0,0.00019178,2]
[421484808,1777753856000,-151.0,0.00019178,2]
[421484807,1777753856000,-151.0,0.00019178,2]
[421484805,1777753856000,-502.0,0.00019096,2]
[421484811,1777753856000,-2000.0,0.000194,2]
[421484809,1777753856000,-151.0,0.00019178,2]
[421484751,1777753856000,-257.88138676,0.00016169,2]
[421484803,1777753856000,-2961.0,0.000188,2]
[421484801,1777753856000,-151.0,0.00018601,2]
[421484782,1777753856000,-922.0,0.000171,2]
[421484797,1777753856000,-1248.0,0.00018034,5]
[421484778,1777753856000,-1977.915675,0.00016947,2]
[421484747,1777753856000,-1500.0,0.00016068,2]
[421484781,1777753856000,-881.0,0.000171,2]
[421484752,1777753856000,-166.66,0.00016171,2]
[421484757,1777753856000,-151.0,0.00016438,2]
[421484756,1777753856000,-159.0,0.00016438,2]
[421484762,1777753856000,-166.66,0.00016512,2]
[421484760,1777753856000,-251.576851,0.00016438,2]
[421484767,1777753856000,-2000.0,0.00016706,2]
[421484766,1777753856000,-433.0,0.0001669,2]
[421484761,1777753856000,-151.0,0.00016438,2]
[421484758,1777753856000,-151.0,0.00016438,2]
[421484768,1777753856000,-151.0,0.00016778,2]
[421484759,1777753856000,-151.0,0.00016438,2]
[421484763,1777753856000,-1503.88575088,0.00016616,2]
[421484750,1777753856000,-2351.0,0.0001611,2]
[421484765,1777753856000,-391.2748952,0.00016616,2]
[421484780,1777753856000,-626.0,0.000171,2]
[421484764,1777753856000,-2000.0,0.00016616,2]
[421484776,1777753856000,-1977.915675,0.00016947,2]
[421484779,1777753856000,-1977.915675,0.00016947,2]
[421484775,1777753856000,-151.0,0.00016947,2]
[421484777,1777753856000,-1977.915675,0.00016947,2]
[421484774,1777753856000,-151.0,0.00016947,2]
[421484773,1777753856000,-166.66,0.00016852,2]
[421484772,1777753856000,-4000.0,0.00016778,2]
[421484771,1777753856000,-176.301231,0.00016778,2]
[421484769,1777753856000,-151.0,0.00016778,2]
[421484770,1777753856000,-151.0,0.00016778,2]
[421484852,1777753857000,-159.0,0.00022,2]
[421484844,1777753857000,-240.965537,0.00021918,2]
[421484853,1777753857000,-398.0,0.00022,2]
[421484851,1777753857000,-151.0,0.00021918,2]
[421484848,1777753857000,-240.965537,0.00021918,2]
[421484847,1777753857000,-151.0,0.00021918,2]
[421484845,1777753857000,-240.965537,0.00021918,2]
[421484842,1777753857000,-1207.0,0.00021839,7]
[421484841,1777753857000,-5528.0,0.000218,3]
[421484854,1777753857000,-504.11147448,0.00022133,2]
[421484843,1777753857000,-5000.0,0.00021918,2]
[421484849,1777753857000,-151.0,0.00021918,2]
[421484863,1777753857000,-151.0,0.00022827,2]
[421484861,1777753857000,-151.0,0.00022633,2]
[421484860,1777753857000,-5528.0,0.000226,5]
[421484856,1777753857000,-37053.84897671,0.00022195,2]
[421484855,1777753857000,-151.0,0.00022192,2]
[421484859,1777753857000,-3385.55620872,0.0002254,2]
[421484858,1777753857000,-159.0,0.00022353,2]
[421484862,1777753857000,-15201.05447576,0.00022633,2]
[421484865,1777753857000,-1977.915675,0.00022827,2]
[421484875,1777753857000,-240.344,0.00022994,2]
[421484876,1777753857000,-250.092,0.00022994,2]
[421484866,1777753857000,-1977.915675,0.00022827,2]
[421484868,1777753857000,-151.0,0.00022827,2]
[421484867,1777753857000,-1977.915675,0.00022827,2]
[421484846,1777753857000,-240.965537,0.00021918,2]
[421484857,1777753857000,-151.0,0.00022195,2]
[421484840,1777753857000,-999.0,0.00021799,3]
[421484813,1777753857000,-630.14,0.00019612,2]
[421484839,1777753857000,-630.14,0.00021791,2]
[421484864,1777753857000,-1977.915675,0.00022827,2]
[421484812,1777753857000,-334.0,0.00019493,2]
[421484815,1777753857000,-1846.65767708,0.0002,2]
[421484816,1777753857000,-159.0,0.0002,2]
[421484814,1777753857000,-2000.0,0.000198,2]
[421484820,1777753857000,-874.349385,0.0002,2]
[421484825,1777753857000,-3751.15391466,0.00020889,2]
[421484826,1777753857000,-3534.0,0.00020934,2]
[421484823,1777753857000,-159.0,0.00020381,2]
[421484818,1777753857000,-398.0,0.0002,2]
[421484819,1777753857000,-1000.0,0.0002,7]
[421484817,1777753857000,-151.0,0.0002,2]
[421484821,1777753857000,-2000.0,0.00020047,2]
[421484824,1777753857000,-2772.0,0.000206,2]
[421484822,1777753857000,-2000.0,0.000202,2]
[421484828,1777753857000,-157.0,0.00021,2]
[421484834,1777753857000,-1220.0,0.00021234,2]
[421484829,1777753857000,-398.0,0.00021,2]
[421484827,1777753857000,-159.0,0.00021,2]
[421484837,1777753857000,-162.41759262,0.00021741,2]
[421484838,1777753857000,-160.0,0.00021741,2]
[421484835,1777753857000,-623.0,0.00021234,2]
[421484836,1777753857000,-1351.0,0.00021234,2]
[421484833,1777753857000,-150.258,0.00021234,2]
[421484831,1777753857000,-3922.9256047,0.00021202,2]
[421484830,1777753857000,-18449.0,0.000211,2]
[421484832,1777753857000,-1267.0,0.00021234,2]
[421484850,1777753857000,-151.0,0.00021918,2]
[421484870,1777753857000,-185.10386,0.00022827,2]
[421484915,1777753857000,-1118.0,0.00023992,2]
[421484872,1777753857000,-772.27606118,0.00022849,2]
[421484906,1777753857000,-400.87484409,0.000235,2]
[421484911,1777753857000,-25099.29447106,0.000238,2]
[421484913,1777753857000,-180.36333558,0.00023804,2]
[421484908,1777753857000,-1911.75385991,0.00023682,2]
[421484905,1777753857000,-3518.92567068,0.00023492,2]
[421484907,1777753857000,-182.71,0.0002366,2]
[421484909,1777753857000,-1911.75385991,0.00023763,2]
[421484910,1777753857000,-15201.05447576,0.00023767,2]
[421484912,1777753857000,-1911.75385991,0.00023802,2]
[421484914,1777753857000,-630.14,0.0002397,2]
[421484925,1777753857000,-278.665397,0.00024143,2]
[421484919,1777753857000,-526.0,0.00024,5]
[421484922,1777753857000,-1911.75385991,0.00024051,2]
[421484918,1777753857000,-1251.10242512,0.00024,2]